bitfinex-derivatives/quotes_BNBF0:USTF0_20260114
["timestamp","ask_amount","ask_price","bid_price","bid_amount"]
[1768390610897,0.76848548,931.82,930.12,0.18683811]
[1768390611199,0.76848548,931.81,930.12,0.18683811]
[1768390611400,0.76848548,931.8,930.12,0.18683811]
[1768390611602,0.76848548,931.79,930.12,0.18683811]
[1768390611804,0.76848548,931.78,930.12,0.18683811]
[1768390611997,0.76848548,931.77,930.12,0.18683811]
[1768390612200,0.76848548,931.76,930.12,0.18683811]
[1768390612398,0.76848548,931.75,930.12,0.18683811]
[1768390612598,0.76848548,931.74,930.12,0.18683811]
[1768390612802,0.76848548,931.73,930.12,0.18683811]
[1768390613003,0.76848548,931.72,930.12,0.18683811]
[1768390613200,0.76848548,931.71,930.12,0.18683811]
[1768390613400,0.76848548,931.7,930.12,0.18683811]
[1768390613699,0.76848548,931.69,930.12,0.18683811]
[1768390613903,0.76848548,931.68,930.12,0.18683811]
[1768390614100,0.76848548,931.67,930.12,0.18683811]
[1768390614404,0.18684112,932.02,930.12,0.18683811]
[1768390614405,0.76848548,931.66,930.12,0.18683811]
[1768390614604,0.76848548,931.65,930.12,0.18683811]
[1768390614801,0.76848548,931.64,930.12,0.18683811]
[1768390615002,0.76848548,931.63,930.12,0.18683811]
[1768390615304,0.76848548,931.62,930.12,0.18683811]
[1768390615503,0.76848548,931.61,930.12,0.18683811]
[1768390615699,0.76848548,931.6,930.12,0.18683811]
[1768390615902,0.76848548,931.59,930.12,0.18683811]
[1768390616105,0.76848548,931.58,930.12,0.18683811]
[1768390616302,0.76848548,931.57,930.12,0.18683811]
[1768390616502,0.76848548,931.56,930.12,0.18683811]
[1768390616707,0.76848548,931.55,930.12,0.18683811]
[1768390616907,0.76848548,931.54,930.12,0.18683811]
[1768390617107,0.76848548,931.53,930.12,0.18683811]
[1768390617306,0.76848548,931.52,930.12,0.18683811]
[1768390617508,0.76848548,931.51,930.12,0.18683811]
[1768390617708,0.76886811,931.5,930.12,0.18683811]
[1768390618006,0.76886811,931.49,930.12,0.18683811]
[1768390618208,0.76886811,931.48,930.12,0.18683811]
[1768390618508,0.76886811,931.47,930.12,0.18683811]
[1768390618803,0.18684112,932.02,930.12,0.18683811]
[1768390618804,0.76886811,931.46,930.12,0.18683811]
[1768390619008,0.76886811,931.45,930.12,0.18683811]
[1768390619303,0.76886811,931.44,930.12,0.18683811]
[1768390619508,0.76886811,931.43,930.12,0.18683811]
[1768390619705,0.76886811,931.42,930.12,0.18683811]
[1768390620007,0.76886811,931.41,930.12,0.18683811]
[1768390620206,0.76886811,931.4,930.12,0.18683811]
[1768390620503,0.76886811,931.39,930.12,0.18683811]
[1768390620702,0.76886811,931.38,930.12,0.18683811]
[1768390620905,0.76886811,931.37,930.12,0.18683811]
[1768390621106,0.76886811,931.36,930.12,0.18683811]
[1768390621309,0.76886811,931.35,930.12,0.18683811]
[1768390621509,0.76886811,931.34,930.12,0.18683811]
[1768390621809,0.76886811,931.33,930.12,0.18683811]
[1768390622106,0.76886811,931.32,930.12,0.18683811]
[1768390622306,0.76886811,931.31,930.12,0.18683811]
[1768390622506,0.76886811,931.3,930.12,0.18683811]
[1768390622709,0.76886811,931.29,930.12,0.18683811]
[1768390623006,0.76886811,931.28,930.12,0.18683811]
[1768390623305,0.76886811,931.27,930.12,0.18683811]
[1768390623504,0.76886811,931.26,930.12,0.18683811]
[1768390623709,0.76886811,931.25,930.12,0.18683811]
[1768390624009,1.174,931.33,930.12,0.18683811]
[1768390624010,0.76886811,931.24,930.12,0.18683811]
[1768390624204,0.76886811,931.23,930.12,0.18683811]
[1768390624408,0.76886811,931.22,930.12,0.18683811]
[1768390624608,0.76886811,931.21,930.12,0.18683811]
[1768390624808,0.76886811,931.2,930.12,0.18683811]
[1768390625008,0.76886811,931.19,930.12,0.18683811]
[1768390625208,0.76886811,931.18,930.12,0.18683811]
[1768390625510,0.76886811,931.17,930.12,0.18683811]
[1768390625711,0.76886811,931.16,930.12,0.18683811]
[1768390626007,0.76886811,931.15,930.12,0.18683811]
[1768390626311,0.76886811,931.14,930.12,0.18683811]
[1768390626506,0.76886811,931.13,930.12,0.18683811]
[1768390626711,0.76886811,931.12,930.12,0.18683811]
[1768390626905,1.174,931.33,930.12,0.18683811]
[1768390626906,0.76886811,931.11,930.12,0.18683811]
[1768390627111,0.76886811,931.1,930.12,0.18683811]
[1768390627311,0.76886811,931.09,930.12,0.18683811]
[1768390627611,0.76886811,931.08,930.12,0.18683811]
[1768390627808,0.76886811,931.07,930.12,0.18683811]
[1768390628010,0.76886811,931.06,930.12,0.18683811]
[1768390628210,0.76886811,931.05,930.12,0.18683811]
[1768390628414,0.76886811,931.04,930.12,0.18683811]
[1768390628612,0.76886811,931.03,930.12,0.18683811]
[1768390628809,1.174,931.33,930.12,0.18683811]
[1768390629109,0.77953022,931.32,930.12,0.18683811]
[1768390629413,0.77953022,931.31,930.12,0.18683811]
[1768390629613,0.77953022,931.3,930.12,0.18683811]
[1768390629813,0.77953022,931.29,930.12,0.18683811]
[1768390630111,0.77953022,931.28,930.12,0.18683811]
[1768390630410,0.77953022,931.27,930.12,0.18683811]
[1768390630614,0.77953022,931.26,930.12,0.18683811]
[1768390630815,0.77953022,931.25,930.12,0.18683811]
[1768390631012,0.77953022,931.24,930.12,0.18683811]
[1768390631216,0.77953022,931.23,930.12,0.18683811]
[1768390631418,0.77953022,931.22,930.12,0.18683811]
[1768390631616,0.77953022,931.21,930.12,0.18683811]
[1768390631813,0.77953022,931.2,930.12,0.18683811]
[1768390632017,1.174,931.33,930.12,0.18683811]
[1768390632018,0.77953022,931.19,930.12,0.18683811]
[1768390632314,0.77953022,931.18,930.12,0.18683811]
[1768390632617,0.77953022,931.17,930.12,0.18683811]
[1768390632814,0.77953022,931.16,930.12,0.18683811]
[1768390633011,0.77953022,931.15,930.12,0.18683811]
[1768390633215,0.77953022,931.14,930.12,0.18683811]
[1768390633417,0.77953022,931.13,930.12,0.18683811]
[1768390633716,0.77953022,931.12,930.12,0.18683811]
[1768390633916,0.77953022,931.11,930.12,0.18683811]
[1768390634118,0.77953022,931.1,930.12,0.18683811]
[1768390634318,0.77962981,931.09,930.12,0.18683811]
[1768390634520,0.77962981,931.08,930.12,0.18683811]
[1768390634821,0.77962981,931.07,930.12,0.18683811]
[1768390635016,0.77962981,931.06,930.12,0.18683811]
[1768390635221,0.77962981,931.05,930.12,0.18683811]
[1768390635521,0.77962981,931.04,930.12,0.18683811]
[1768390635717,0.77962981,931.03,930.12,0.18683811]
[1768390636020,0.77962981,931.02,930.12,0.18683811]
[1768390636217,1.174,931.33,930.12,0.18683811]
[1768390636425,0.7795679,931.32,930.12,0.18683811]
[1768390636622,0.7795679,931.31,930.12,0.18683811]
[1768390636818,0.7795679,931.3,930.12,0.18683811]
[1768390637019,0.7795679,931.29,930.12,0.18683811]
[1768390637219,0.7795679,931.28,930.12,0.18683811]
[1768390637420,0.7795679,931.27,930.12,0.18683811]
[1768390637620,0.7795679,931.26,930.12,0.18683811]
[1768390637921,0.7795679,931.25,930.12,0.18683811]
[1768390638123,0.7795679,931.24,930.12,0.18683811]
[1768390638323,0.7795679,931.23,930.12,0.18683811]
[1768390638522,0.7795679,931.22,930.12,0.18683811]
[1768390638723,0.7795679,931.21,930.12,0.18683811]
[1768390638924,0.7795679,931.2,930.12,0.18683811]
[1768390639122,0.7795679,931.19,930.12,0.18683811]
[1768390639320,0.7795679,931.18,930.12,0.18683811]
[1768390639521,0.7795679,931.17,930.12,0.18683811]
[1768390639721,0.7795679,931.16,930.12,0.18683811]
[1768390639921,0.7795679,931.15,930.12,0.18683811]
[1768390640122,0.7795679,931.14,930.12,0.18683811]
[1768390640325,0.7795679,931.13,930.12,0.18683811]
[1768390640527,0.7795679,931.12,930.12,0.18683811]
[1768390640725,0.7795679,931.11,930.12,0.18683811]
[1768390640927,0.7795679,931.1,930.12,0.18683811]
[1768390641126,0.7795679,931.09,930.12,0.18683811]
[1768390641326,0.7795679,931.08,930.12,0.18683811]
[1768390641525,0.7795679,931.07,930.12,0.18683811]
[1768390641728,0.7795679,931.06,930.12,0.18683811]
[1768390642024,0.7795679,931.05,930.12,0.18683811]
[1768390642225,0.7795679,931.04,930.12,0.18683811]
[1768390642427,1.174,931.33,930.12,0.18683811]
[1768390642428,0.7795679,931.03,930.12,0.18683811]
[1768390642623,0.7795679,931.02,930.12,0.18683811]
[1768390642825,0.7795679,931.01,930.12,0.18683811]
[1768390643129,1.174,931.33,930.12,0.18683811]
[1768390643130,0.7795679,931.0,930.12,0.18683811]
[1768390643327,0.77990693,930.99,930.12,0.18683811]
[1768390643625,1.174,931.33,930.12,0.18683811]
[1768390643827,0.77991422,931.32,930.12,0.18683811]
[1768390644024,0.77991422,931.31,930.12,0.18683811]
[1768390644228,0.77991422,931.3,930.12,0.18683811]
[1768390644427,0.77991422,931.29,930.12,0.18683811]
[1768390644627,0.77991422,931.28,930.12,0.18683811]
[1768390644928,0.77991422,931.27,930.12,0.18683811]
[1768390645126,0.77991422,931.26,930.12,0.18683811]
[1768390645326,0.77991422,931.25,930.12,0.18683811]
[1768390645630,0.77991422,931.24,930.12,0.18683811]
[1768390645827,0.77991422,931.23,930.12,0.18683811]
[1768390646028,0.77991422,931.22,930.12,0.18683811]
[1768390646331,0.77991422,931.21,930.12,0.18683811]
[1768390646531,0.77991422,931.2,930.12,0.18683811]
[1768390646728,0.77991422,931.19,930.12,0.18683811]
[1768390646930,0.77991422,931.18,930.12,0.18683811]
[1768390647228,0.77991422,931.17,930.12,0.18683811]
[1768390647427,0.77991422,931.16,930.12,0.18683811]
[1768390647631,0.77991422,931.15,930.12,0.18683811]
[1768390647831,0.77991422,931.14,930.12,0.18683811]
[1768390648128,0.77991422,931.13,930.12,0.18683811]
[1768390648330,0.77991422,931.12,930.12,0.18683811]
[1768390648628,0.77991422,931.11,930.12,0.18683811]
[1768390648930,0.77991422,931.1,930.12,0.18683811]
[1768390649132,0.77991422,931.09,930.12,0.18683811]
[1768390649429,0.77991422,931.08,930.12,0.18683811]
[1768390649627,1.174,931.33,930.12,0.18683811]
[1768390649628,0.77991422,931.07,930.12,0.18683811]
[1768390649832,0.77991422,931.06,930.12,0.18683811]
[1768390650028,0.77991422,931.05,930.12,0.18683811]
[1768390650232,0.77991422,931.04,930.12,0.18683811]
[1768390650530,0.77991422,931.03,930.12,0.18683811]
[1768390650729,0.77991422,931.02,930.12,0.18683811]
[1768390651033,0.77991422,931.01,930.12,0.18683811]
[1768390651332,0.77991422,931.0,930.12,0.18683811]
[1768390651533,0.77991422,930.99,930.12,0.18683811]
[1768390651830,0.77959944,930.98,930.12,0.18683811]
[1768390652034,0.77959944,930.97,930.12,0.18683811]
[1768390652231,0.77959944,930.96,930.12,0.18683811]
[1768390652430,0.77959944,930.95,930.12,0.18683811]
[1768390652634,0.77959944,930.94,930.12,0.18683811]
[1768390652835,0.77959944,930.93,930.12,0.18683811]
[1768390653132,0.77959944,930.92,930.12,0.18683811]
[1768390653337,0.77959944,930.91,930.12,0.18683811]
[1768390653533,0.77959944,930.9,930.12,0.18683811]
[1768390653838,0.77959944,930.89,930.12,0.18683811]
[1768390654036,1.174,931.33,930.12,0.18683811]
[1768390654338,0.77940992,931.32,930.12,0.18683811]
[1768390654536,0.77940992,931.31,930.12,0.18683811]
[1768390654736,0.77940992,931.3,930.12,0.18683811]
[1768390654934,0.77940992,931.29,930.12,0.18683811]
[1768390655237,0.77940992,931.28,930.12,0.18683811]
[1768390655436,0.77940992,931.27,930.12,0.18683811]
[1768390655737,0.77940992,931.26,930.12,0.18683811]
[1768390655934,0.77940992,931.25,930.12,0.18683811]
[1768390656133,0.77940992,931.24,930.12,0.18683811]
[1768390656334,0.77940992,931.23,930.12,0.18683811]
[1768390656536,0.77940992,931.22,930.12,0.18683811]
[1768390656736,0.77940992,931.21,930.12,0.18683811]
[1768390657037,0.77940992,931.2,929.4,2.6562837]
[1768390657238,0.77940992,931.19,929.29,2.6562837]
[1768390657538,0.77940992,931.18,930.01,0.18695053]
[1768390657739,0.77940992,931.17,929.27,2.6562837]
[1768390657938,0.77940992,931.16,929.76,0.18695957]
[1768390658238,0.77940992,931.15,929.76,0.18695957]
[1768390658439,0.77940992,931.14,929.76,0.18695957]
[1768390658638,0.77940992,931.13,929.76,0.18695957]
[1768390658939,0.77940992,931.12,929.76,0.18695957]
[1768390659136,0.77940992,931.11,929.76,0.18695957]
[1768390659339,0.77940992,931.1,929.76,0.18695957]
[1768390659538,0.77940992,931.09,929.76,0.18695957]
[1768390659742,0.77940992,931.08,929.76,0.18695957]
[1768390659938,0.77940992,931.07,929.76,0.18695957]
[1768390660139,0.77940992,931.06,929.76,0.18695957]
[1768390660340,0.77940992,931.05,929.76,0.18695957]
[1768390660539,0.77940992,931.04,929.76,0.18695957]
[1768390660742,0.77940992,931.03,929.76,0.18695957]
[1768390660943,0.77940992,931.02,929.76,0.18695957]
[1768390661140,0.77940992,931.01,929.76,0.18695957]
[1768390661341,0.77940992,931.0,929.76,0.18695957]
[1768390661643,0.77940992,930.99,929.76,0.18695957]
[1768390661844,0.77940992,930.98,929.76,0.18695957]
[1768390662139,0.77940992,930.97,929.76,0.18695957]
[1768390662342,0.77940992,930.96,929.76,0.18695957]
[1768390662540,0.77940992,930.95,929.76,0.18695957]
[1768390662739,0.77940992,930.94,929.76,0.18695957]
[1768390662943,0.77940992,930.93,929.76,0.18695957]
[1768390663144,0.77940992,930.92,929.76,0.18695957]
[1768390663344,0.77940992,930.91,929.76,0.18695957]
[1768390663541,0.77940992,930.9,929.76,0.18695957]
[1768390663844,0.77940992,930.89,929.76,0.18695957]
[1768390664045,0.77940992,930.88,929.76,0.18695957]
[1768390664241,0.77940992,930.87,929.76,0.18695957]
[1768390664441,0.77940992,930.86,929.76,0.18695957]
[1768390664642,0.77940992,930.85,929.76,0.18695957]
[1768390664842,0.77940992,930.84,929.76,0.18695957]
[1768390665041,1.174,931.33,929.76,0.18695957]
[1768390665042,0.77940992,930.83,929.76,0.18695957]
[1768390665242,0.77940992,930.82,929.76,0.18695957]
[1768390665448,0.77940992,930.81,929.76,0.18695957]
[1768390665646,0.77940992,930.8,929.76,0.18695957]
[1768390665848,0.77940992,930.79,929.76,0.18695957]
[1768390666142,0.00924291,931.73,929.76,0.18695957]
[1768390666349,0.77817006,931.72,929.76,0.18695957]
[1768390666548,0.77817006,931.71,929.76,0.18695957]
[1768390666750,0.77817006,931.7,929.76,0.18695957]
[1768390667044,0.77817006,931.69,929.76,0.18695957]
[1768390667249,0.77817006,931.68,929.76,0.18695957]
[1768390667448,0.77817006,931.67,929.76,0.18695957]
[1768390667648,0.77817006,931.66,929.76,0.18695957]
[1768390667848,0.77817006,931.65,929.76,0.18695957]
[1768390668049,0.77817006,931.64,929.76,0.18695957]
[1768390668246,0.77817006,931.63,929.76,0.18695957]
[1768390668451,0.77817006,931.62,929.76,0.18695957]
[1768390668647,0.77817006,931.61,929.76,0.18695957]
[1768390668850,0.77817006,931.6,929.76,0.18695957]
[1768390669147,0.77817006,931.59,929.76,0.18695957]
[1768390669347,0.77817006,931.58,929.76,0.18695957]
[1768390669545,0.77817006,931.57,929.76,0.18695957]
[1768390669746,0.77817006,931.56,929.76,0.18695957]
[1768390669947,0.77817006,931.55,929.76,0.18695957]
[1768390670151,0.77817006,931.54,929.76,0.18695957]
[1768390670353,0.77817006,931.53,929.76,0.18695957]
[1768390670654,1.452,931.6,929.76,0.18695957]
[1768390670853,0.77785292,931.52,929.76,0.18695957]
[1768390671249,1.452,931.6,929.76,0.18695957]
[1768390671654,0.77784802,931.59,929.76,0.18695957]
[1768390672055,0.77784803,931.58,929.76,0.18695957]
[1768390672253,0.77784803,931.57,929.76,0.18695957]
[1768390672453,0.77784803,931.56,929.76,0.18695957]
[1768390672751,0.77784803,931.55,929.76,0.18695957]
[1768390672955,0.77784803,931.54,929.76,0.18695957]
[1768390673153,0.77784803,931.53,929.76,0.18695957]
[1768390673352,0.77784803,931.52,929.76,0.18695957]
[1768390673654,0.77784803,931.51,929.76,0.18695957]
[1768390673852,0.77784803,931.5,929.76,0.18695957]
[1768390674159,0.77784803,931.49,929.76,0.18695957]
[1768390674355,0.77784803,931.48,929.76,0.18695957]
[1768390674552,0.77784803,931.47,929.76,0.18695957]
[1768390674756,0.77784803,931.46,929.76,0.18695957]
[1768390675055,0.77784803,931.45,929.76,0.18695957]
[1768390675254,0.77784803,931.44,929.76,0.18695957]
[1768390675458,0.77784803,931.43,929.76,0.18695957]
[1768390675655,0.77784803,931.42,929.76,0.18695957]
[1768390675851,0.77784803,931.41,929.76,0.18695957]
[1768390676052,0.77784803,931.4,929.76,0.18695957]
[1768390676257,0.77784803,931.39,929.76,0.18695957]
[1768390676555,0.77784803,931.38,929.76,0.18695957]
[1768390676755,0.77784803,931.37,929.76,0.18695957]
[1768390676953,0.77784803,931.36,929.76,0.18695957]
[1768390677153,0.77784803,931.35,929.76,0.18695957]
[1768390677360,0.77784803,931.34,929.76,0.18695957]
[1768390677655,0.77784803,931.33,929.76,0.18695957]
[1768390677854,0.77784803,931.32,929.76,0.18695957]
[1768390678053,0.77784803,931.31,929.76,0.18695957]
[1768390678259,0.77784803,931.3,929.76,0.18695957]
[1768390678556,0.77784803,931.29,929.76,0.18695957]
[1768390678754,0.77784803,931.28,929.76,0.18695957]
[1768390678953,1.452,931.6,929.76,0.18695957]
[1768390678954,0.77784803,931.27,929.76,0.18695957]
[1768390679154,0.77784803,931.26,929.76,0.18695957]
[1768390679354,0.77784803,931.25,929.76,0.18695957]
[1768390679654,0.77784803,931.24,929.76,0.18695957]
[1768390679856,0.77784803,931.23,929.76,0.18695957]
[1768390680054,0.77784803,931.22,929.76,0.18695957]
[1768390680257,0.77784803,931.21,929.76,0.18695957]
[1768390680459,0.77784803,931.2,929.76,0.18695957]
[1768390680659,0.77784803,931.19,929.76,0.18695957]
[1768390680860,0.77784803,931.18,929.76,0.18695957]
[1768390681061,0.77784803,931.17,929.76,0.18695957]
[1768390681360,0.77784803,931.16,929.76,0.18695957]
[1768390681660,0.77784803,931.15,929.76,0.18695957]
[1768390681860,0.77784803,931.14,929.76,0.18695957]
[1768390682160,0.77784803,931.13,929.76,0.18695957]
[1768390682460,0.77784803,931.12,929.76,0.18695957]
[1768390682661,0.77784803,931.11,929.76,0.18695957]
[1768390682856,0.77784803,931.1,929.76,0.18695957]
[1768390683064,0.77784803,931.09,929.76,0.18695957]
[1768390683361,0.77784803,931.08,929.76,0.18695957]
[1768390683660,0.77784803,931.07,929.76,0.18695957]
[1768390683861,0.77784803,931.06,929.76,0.18695957]
[1768390684062,0.77784803,931.05,929.76,0.18695957]
[1768390684261,0.77784803,931.04,929.76,0.18695957]
[1768390684463,0.77784803,931.03,929.76,0.18695957]
[1768390684764,0.77784803,931.02,929.76,0.18695957]
[1768390684965,0.77784803,931.01,929.76,0.18695957]
[1768390685265,0.77784803,931.0,929.76,0.18695957]
[1768390685564,0.77784803,930.99,929.76,0.18695957]
[1768390685765,0.77784803,930.98,929.76,0.18695957]
[1768390686060,1.48,931.01,929.76,0.18695957]
[1768390686366,0.77603051,931.0,929.76,0.18695957]
[1768390687265,0.77620869,930.99,929.76,0.18695957]
[1768390687567,0.77620869,930.98,929.76,0.18695957]
[1768390687764,1.48,931.01,929.76,0.18695957]
[1768390687969,0.77622341,931.0,929.76,0.18695957]
[1768390688168,0.77622341,930.99,929.76,0.18695957]
[1768390688370,1.48,931.01,929.76,0.18695957]
[1768390688567,0.7763068,931.0,929.76,0.18695957]
[1768390688866,0.7763068,930.99,929.76,0.18695957]
[1768390689071,1.48,931.01,929.76,0.18695957]
[1768390689366,0.77629368,931.0,929.76,0.18695957]
[1768390689571,1.48,931.01,929.76,0.18695957]
[1768390721199,0.77619369,931.0,929.76,0.18695957]
[1768390721503,1.48,931.01,929.76,0.18695957]
[1768390721700,0.77619369,931.0,929.76,0.18695957]
[1768390721904,1.48,931.01,929.76,0.18695957]
[1768390722100,0.77619357,931.0,929.76,0.18695957]
[1768390722404,0.77640035,930.99,929.76,0.18695957]
[1768390722703,1.48,931.01,929.76,0.18695957]
[1768390722899,0.77640035,931.0,929.76,0.18695957]
[1768390723104,0.77640035,930.99,929.76,0.18695957]
[1768390723303,0.77664619,930.98,929.76,0.18695957]
[1768390723503,1.48,931.01,929.76,0.18695957]
[1768390723703,0.77664619,931.0,929.76,0.18695957]
[1768390724003,0.77664619,930.99,929.76,0.18695957]
[1768390724203,0.77664619,930.98,929.76,0.18695957]
[1768390724400,0.77664619,930.97,929.76,0.18695957]
[1768390724603,1.48,931.01,929.76,0.18695957]
[1768390724903,0.77695113,931.0,929.76,0.18695957]
[1768390725204,0.77695113,930.99,929.76,0.18695957]
[1768390725404,0.77695113,930.98,929.76,0.18695957]
[1768390725605,0.77695113,930.97,929.76,0.18695957]
[1768390725801,1.48,931.01,929.76,0.18695957]
[1768390726004,0.77696601,931.0,929.76,0.18695957]
[1768390726204,0.77696601,930.99,929.76,0.18695957]
[1768390726403,0.77696601,930.98,929.76,0.18695957]
[1768390726603,0.77696601,930.97,929.76,0.18695957]
[1768390726806,0.77696601,930.96,929.76,0.18695957]
[1768390727107,0.77696601,930.95,929.76,0.18695957]
[1768390727303,0.00899849,931.94,929.76,0.18695957]
[1768390727502,0.77754288,931.93,929.76,0.18695957]
[1768390727706,0.77754288,931.92,929.76,0.18695957]
[1768390727903,0.77754288,931.91,929.76,0.18695957]
[1768390728103,0.77754288,931.9,929.76,0.18695957]
[1768390728303,0.77754288,931.89,929.76,0.18695957]
[1768390728504,0.77754288,931.88,929.76,0.18695957]
[1768390728803,0.77754288,931.87,929.76,0.18695957]
[1768390729002,0.77754288,931.86,929.76,0.18695957]
[1768390729203,0.77754288,931.85,929.76,0.18695957]
[1768390729408,0.77754288,931.84,929.76,0.18695957]
[1768390729602,0.77754288,931.83,929.76,0.18695957]
[1768390729806,0.77754288,931.82,929.76,0.18695957]
[1768390730001,0.77754288,931.81,929.76,0.18695957]
[1768390730207,0.77754288,931.8,929.76,0.18695957]
[1768390730406,0.77754288,931.79,929.76,0.18695957]
[1768390730606,0.77754288,931.78,929.76,0.18695957]
[1768390730803,0.77754288,931.77,929.76,0.18695957]
[1768390731004,0.77754288,931.76,929.76,0.18695957]
[1768390731205,0.77754288,931.75,929.76,0.18695957]
[1768390731409,0.77754288,931.74,929.76,0.18695957]
[1768390731608,0.77754288,931.73,929.76,0.18695957]
[1768390731809,0.77754288,931.72,929.76,0.18695957]
[1768390732006,1.092,931.74,929.76,0.18695957]
[1768390733611,0.77790186,931.73,929.76,0.18695957]
[1768390733813,0.77790186,931.72,929.76,0.18695957]
[1768390734715,1.092,931.74,929.76,0.18695957]
[1768390735312,0.77793687,931.73,929.76,0.18695957]
[1768390735515,0.77793687,931.72,929.76,0.18695957]
[1768390735711,0.77793687,931.71,929.76,0.18695957]
[1768390735915,0.77793687,931.7,929.76,0.18695957]
[1768390736214,0.77793687,931.69,929.76,0.18695957]
[1768390736415,0.77793687,931.68,929.76,0.18695957]
[1768390736711,0.77793687,931.67,929.76,0.18695957]
[1768390736915,0.77793687,931.66,929.76,0.18695957]
[1768390737110,1.092,931.74,929.76,0.18695957]
[1768390737111,0.77793687,931.65,929.76,0.18695957]
[1768390737316,0.77793687,931.64,929.76,0.18695957]
[1768390737512,0.77793687,931.63,929.76,0.18695957]
[1768390737810,0.77793687,931.62,929.76,0.18695957]
[1768390738013,0.77793687,931.61,929.76,0.18695957]
[1768390738209,0.77793687,931.6,929.76,0.18695957]
[1768390738412,0.77793687,931.59,929.76,0.18695957]
[1768390738612,0.77793687,931.58,929.76,0.18695957]
[1768390738814,0.77793687,931.57,929.76,0.18695957]
[1768390739012,0.77793687,931.56,929.76,0.18695957]
[1768390739212,0.77793687,931.55,929.76,0.18695957]
[1768390739511,0.77793687,931.54,929.76,0.18695957]
[1768390739710,0.77793687,931.53,929.76,0.18695957]
[1768390739911,0.77793687,931.52,929.76,0.18695957]
[1768390740114,0.77793687,931.51,929.76,0.18695957]
[1768390740314,0.77793687,931.5,929.76,0.18695957]
[1768390740515,0.77793687,931.49,929.76,0.18695957]
[1768390740715,0.77793687,931.48,929.76,0.18695957]
[1768390740912,1.092,931.74,929.76,0.18695957]
[1768390740913,0.77793687,931.47,929.76,0.18695957]
[1768390741117,0.77793687,931.46,929.76,0.18695957]
[1768390741414,0.77793687,931.45,929.76,0.18695957]
[1768390741613,0.77793687,931.44,929.76,0.18695957]
[1768390741813,0.77793687,931.43,929.76,0.18695957]
[1768390742019,0.77793687,931.42,929.76,0.18695957]
[1768390742217,0.77793687,931.41,929.76,0.18695957]
[1768390742418,0.77793687,931.4,929.76,0.18695957]
[1768390742617,0.77793687,931.39,929.81,2.6562837]
[1768390742819,0.77793687,931.38,929.81,2.6562837]
[1768390743019,0.77793687,931.37,929.81,2.6562837]
[1768390743219,0.77793687,931.36,929.81,2.6562837]
[1768390743415,0.77793687,931.35,929.81,2.6562837]
[1768390743619,0.77793687,931.34,929.79,2.6562837]
[1768390743816,0.77793687,931.33,929.79,2.6562837]
[1768390744022,0.77793687,931.32,929.79,2.6562837]
[1768390744216,0.77793687,931.31,929.79,2.6562837]
[1768390744416,0.77793687,931.3,929.79,2.6562837]
[1768390744720,0.77793687,931.29,929.78,2.6562837]
[1768390744919,0.77793687,931.28,929.78,2.6562837]
[1768390745119,0.77793687,931.27,929.78,2.6562837]
[1768390745320,0.77793687,931.26,929.78,2.6562837]
[1768390745521,0.77793687,931.25,929.78,2.6562837]
[1768390745717,0.77793687,931.24,929.78,2.6562837]
[1768390746014,0.77793687,931.23,929.78,2.6562837]
[1768390746316,0.77793687,931.23,929.77,2.6562837]
[1768390746516,0.77793687,931.22,929.77,2.6562837]
[1768390746822,0.77793687,931.21,929.77,2.6562837]
[1768390747016,0.77793687,931.2,929.77,2.6562837]
[1768390747319,0.77793687,931.19,929.76,2.84324327]
[1768390747620,0.77793687,931.18,929.76,2.84324327]
[1768390747819,0.77793687,931.17,929.76,2.84324327]
[1768390748116,0.77793687,931.16,929.76,2.84324327]
[1768390748319,0.77793687,931.15,929.76,2.84324327]
[1768390748619,0.77793687,931.14,929.76,2.84324327]
[1768390748819,1.092,931.74,929.76,2.84324327]
[1768390749019,0.77651785,931.73,929.76,2.84324327]
[1768390749217,0.77651785,931.72,929.76,2.84324327]
[1768390749421,0.77651785,931.71,929.76,2.84324327]
[1768390749620,0.77651785,931.7,929.76,2.84324327]
[1768390749819,0.77651785,931.69,929.76,2.84324327]
[1768390750120,0.77651785,931.68,929.76,2.84324327]
[1768390750320,0.77651785,931.67,929.76,2.84324327]
[1768390750518,0.77651785,931.66,929.76,2.84324327]
[1768390750721,0.77651785,931.65,929.76,2.84324327]
[1768390751017,0.77651785,931.64,929.76,2.84324327]
[1768390751318,0.77651785,931.63,929.76,2.84324327]
[1768390751522,0.77651785,931.62,929.76,2.84324327]
[1768390751721,0.77651785,931.61,929.76,2.84324327]
[1768390751921,0.77651785,931.6,929.76,2.84324327]
[1768390752121,0.77651785,931.59,929.76,2.84324327]
[1768390752318,0.77651785,931.58,929.76,2.84324327]
[1768390752523,0.77651785,931.57,929.76,2.84324327]
[1768390752717,0.77651785,931.56,929.76,2.84324327]
[1768390753017,0.77651785,931.55,929.76,2.84324327]
[1768390753323,0.77651785,931.54,929.76,2.84324327]
[1768390753522,0.77651785,931.53,929.76,0.18695957]
[1768390753819,0.77651785,931.52,929.76,0.18695957]
[1768390754019,0.77651785,931.51,929.76,0.18695957]
[1768390754221,0.77651785,931.5,929.76,0.18695957]
[1768390754425,0.77651785,931.49,929.76,0.18695957]
[1768390754623,0.77651785,931.48,929.76,0.18695957]